[Event "GrandPrix_29.05"]
[Site "Chess.com"]
[Date "2020.05.29"]
[Round "3"]
[White "MikaelyanArman1996"]
[Black "BakuTurk"]
[Result "1/2-1/2"]
[WhiteElo "2399"]
[BlackElo "2291"]
[TimeControl "600+2"]
[EndTime "10:29:37 PDT"]
[Termination "Game drawn by repetition"]

1. d4 {[%clk 0:10:01]} 1... Nf6 {[%clk 0:10:00.1]} 2. c4 {[%clk 0:09:58.8]} 2...
e6 {[%clk 0:10:01.2]} 3. Nf3 {[%clk 0:09:59.3]} 3... Bb4+ {[%clk 0:10:02.1]} 4.
Bd2 {[%clk 0:09:59.3]} 4... Qe7 {[%clk 0:10:03.2]} 5. Nc3 {[%clk 0:09:54.3]}
5... Nc6 {[%clk 0:09:51.4]} 6. g3 {[%clk 0:09:39.3]} 6... d6 {[%clk 0:09:48.4]}
7. Bg2 {[%clk 0:09:35.9]} 7... Bxc3 {[%clk 0:09:49.5]} 8. Bxc3 {[%clk
0:09:37.8]} 8... Ne4 {[%clk 0:09:50.5]} 9. Rc1 {[%clk 0:09:36.6]} 9... O-O
{[%clk 0:09:48.4]} 10. O-O {[%clk 0:09:36.1]} 10... Nxc3 {[%clk 0:09:48.6]} 11.
Rxc3 {[%clk 0:09:36.4]} 11... e5 {[%clk 0:09:49.5]} 12. d5 {[%clk 0:09:21.8]}
12... Nb8 {[%clk 0:09:50.3]} 13. Nd2 {[%clk 0:08:52.2]} 13... a5 {[%clk
0:09:48.4]} 14. b3 {[%clk 0:07:38.1]} 14... Na6 {[%clk 0:08:39.2]} 15. a3 {[%clk
0:07:36.3]} 15... f5 {[%clk 0:08:36.7]} 16. Qb1 {[%clk 0:07:28.1]} 16... Bd7
{[%clk 0:07:28.9]} 17. b4 {[%clk 0:07:26.8]} 17... e4 {[%clk 0:06:59.1]} 18.
Rfc1 {[%clk 0:07:00.1]} 18... Qe5 {[%clk 0:06:44.9]} 19. e3 {[%clk 0:05:33.3]}
19... axb4 {[%clk 0:04:32.8]} 20. axb4 {[%clk 0:05:35.2]} 20... c5 {[%clk
0:04:33.9]} 21. dxc6 {[%clk 0:05:02.8]} 21... bxc6 {[%clk 0:04:33.9]} 22. Bf1
{[%clk 0:04:36.9]} 22... c5 {[%clk 0:04:27.9]} 23. b5 {[%clk 0:02:40.6]} 23...
Nb4 {[%clk 0:04:27.3]} 24. Rb3 {[%clk 0:02:35.9]} 24... Ra4 {[%clk 0:04:21.2]}
25. Qb2 {[%clk 0:02:27.6]} 25... Qxb2 {[%clk 0:03:29.5]} 26. Rxb2 {[%clk
0:02:29.5]} 26... Rfa8 {[%clk 0:03:30.3]} 27. Nb1 {[%clk 0:02:14.1]} 27... Ra1
{[%clk 0:03:24.9]} 28. Rd1 {[%clk 0:02:09.7]} 28... Kf7 {[%clk 0:01:50.3]} 29.
Rxd6 {[%clk 0:02:08.8]} 29... Ke7 {[%clk 0:01:51.4]} 30. Rbd2 {[%clk 0:02:09.7]}
30... Be6 {[%clk 0:01:52.1]} 31. Nc3 {[%clk 0:02:02.1]} 31... Bxc4 {[%clk
0:01:42.5]} 32. Rd7+ {[%clk 0:01:34.2]} 32... Ke8 {[%clk 0:01:35.9]} 33. Rd1
{[%clk 0:01:15.1]} 33... Rxd1 {[%clk 0:01:18.1]} 34. Rxd1 {[%clk 0:01:17]} 34...
Nd3 {[%clk 0:01:19.1]} 35. b6 {[%clk 0:01:01.4]} 35... Rb8 {[%clk 0:01:02.4]}
36. f3 {[%clk 0:00:50.2]} 36... Rxb6 {[%clk 0:00:39]} 37. fxe4 {[%clk
0:00:50.8]} 37... Nb2 {[%clk 0:00:19.3]} 38. Bxc4 {[%clk 0:00:13.7]} 38... Nxc4
{[%clk 0:00:12.7]} 39. exf5 {[%clk 0:00:13]} 39... Rb3 {[%clk 0:00:13.8]} 40.
Nd5 {[%clk 0:00:12.1]} 40... Rb2 {[%clk 0:00:15]} 41. Rc1 {[%clk 0:00:10.2]}
41... Ne5 {[%clk 0:00:12.7]} 42. Rxc5 {[%clk 0:00:06.1]} 42... Nf3+ {[%clk
0:00:13.5]} 43. Kf1 {[%clk 0:00:07.6]} 43... Rd2 {[%clk 0:00:12.9]} 44. Rc8+
{[%clk 0:00:04.8]} 44... Kd7 {[%clk 0:00:10.8]} 45. Nb6+ {[%clk 0:00:05.5]}
45... Ke7 {[%clk 0:00:12.2]} 46. Rc7+ {[%clk 0:00:05.6]} 46... Kf6 {[%clk
0:00:12.1]} 47. Rc6+ {[%clk 0:00:03.8]} 47... Kxf5 {[%clk 0:00:12.1]} 48. Rc4
{[%clk 0:00:03.5]} 48... Nxh2+ {[%clk 0:00:12.2]} 49. Ke1 {[%clk 0:00:04.2]}
49... Nf3+ {[%clk 0:00:13.3]} 50. Kf1 {[%clk 0:00:05.7]} 50... g5 {[%clk
0:00:14.9]} 51. Nc8 {[%clk 0:00:05.4]} 51... Rd8 {[%clk 0:00:15.2]} 52. Ne7+
{[%clk 0:00:05.6]} 52... Ke6 {[%clk 0:00:15.4]} 53. Nc6 {[%clk 0:00:05.9]} 53...
Nd2+ {[%clk 0:00:16.1]} 54. Ke2 {[%clk 0:00:06.1]} 54... Nxc4 {[%clk 0:00:17.2]}
55. Nxd8+ {[%clk 0:00:07.2]} 55... Kf5 {[%clk 0:00:18.9]} 56. Nc6 {[%clk
0:00:06.5]} 56... Kg4 {[%clk 0:00:16.8]} 57. Kf2 {[%clk 0:00:07.3]} 57... h5
{[%clk 0:00:16.4]} 58. e4 {[%clk 0:00:06.5]} 58... Nd2 {[%clk 0:00:16.6]} 59.
Ne5+ {[%clk 0:00:06.7]} 59... Kh3 {[%clk 0:00:17.9]} 60. Ke3 {[%clk 0:00:07]}
60... Nxe4 {[%clk 0:00:17.4]} 61. Kxe4 {[%clk 0:00:07.2]} 61... Kxg3 {[%clk
0:00:19]} 62. Nf7 {[%clk 0:00:06.8]} 62... g4 {[%clk 0:00:19.4]} 63. Nh6 {[%clk
0:00:07.4]} 63... h4 {[%clk 0:00:16.6]} 64. Nf5+ {[%clk 0:00:06.8]} 64... Kh3
{[%clk 0:00:16.5]} 65. Kf4 {[%clk 0:00:05]} 65... g3 {[%clk 0:00:17]} 66. Nd4
{[%clk 0:00:04.4]} 66... Kg2 {[%clk 0:00:17.3]} 67. Nf3 {[%clk 0:00:04.3]} 67...
h3 {[%clk 0:00:18.5]} 68. Ne1+ {[%clk 0:00:04.4]} 68... Kf2 {[%clk 0:00:19]} 69.
Nd3+ {[%clk 0:00:05.2]} 69... Kg2 {[%clk 0:00:20.1]} 70. Ne1+ {[%clk 0:00:06.2]}
70... Kh2 {[%clk 0:00:21.3]} 71. Nf3+ {[%clk 0:00:05.7]} 71... Kg2 {[%clk
0:00:21.8]} 72. Ne1+ {[%clk 0:00:06.7]} 1/2-1/2

[Event "GrandPrix_29.05"]
[Site "Chess.com"]
[Date "2020.05.29"]
[Round "3"]
[White "Zubrrr"]
[Black "tacticthunder"]
[Result "1-0"]
[WhiteElo "2595"]
[BlackElo "2185"]
[TimeControl "600+2"]
[EndTime "10:29:37 PDT"]
[Termination "Zubrrr won on time"]

1. c4 {[%clk 0:10:01.9]} 1... e6 {[%clk 0:09:48]} 2. g3 {[%clk 0:10:02.8]} 2...
d5 {[%clk 0:09:39.9]} 3. Bg2 {[%clk 0:10:03.2]} 3... Nf6 {[%clk 0:09:31.9]} 4.
Nf3 {[%clk 0:10:04]} 4... d4 {[%clk 0:09:06.1]} 5. O-O {[%clk 0:10:04.5]} 5...
c5 {[%clk 0:09:06.9]} 6. e3 {[%clk 0:10:05]} 6... Nc6 {[%clk 0:09:07.3]} 7. exd4
{[%clk 0:10:05.8]} 7... cxd4 {[%clk 0:09:09.2]} 8. Re1 {[%clk 0:10:06.6]} 8...
a5 {[%clk 0:09:05.7]} 9. d3 {[%clk 0:10:03.6]} 9... Bb4 {[%clk 0:09:03.3]} 10.
Re2 {[%clk 0:09:25.7]} 10... h6 {[%clk 0:09:02]} 11. Na3 {[%clk 0:08:48.2]}
11... O-O {[%clk 0:09:00.1]} 12. Nb5 {[%clk 0:08:19.4]} 12... Bc5 {[%clk
0:08:46.4]} 13. Bf4 {[%clk 0:08:06.2]} 13... Bd7 {[%clk 0:08:40.5]} 14. Rc1
{[%clk 0:06:28.2]} 14... Nh5 {[%clk 0:07:37.6]} 15. Bd6 {[%clk 0:06:08.7]} 15...
Bxd6 {[%clk 0:07:30.6]} 16. Nxd6 {[%clk 0:06:10.6]} 16... Qc7 {[%clk 0:07:11.8]}
17. c5 {[%clk 0:05:41.5]} 17... Nf6 {[%clk 0:06:02]} 18. Nb5 {[%clk 0:05:40.9]}
18... Qb8 {[%clk 0:05:48.3]} 19. Nfxd4 {[%clk 0:05:37.4]} 19... Nxd4 {[%clk
0:05:48.9]} 20. Nxd4 {[%clk 0:05:39.3]} 20... Rd8 {[%clk 0:05:49.3]} 21. Qe1
{[%clk 0:03:00.3]} 21... Qc7 {[%clk 0:04:55.6]} 22. Qc3 {[%clk 0:02:01.7]} 22...
Rac8 {[%clk 0:04:37.4]} 23. h3 {[%clk 0:01:57.2]} 23... Be8 {[%clk 0:04:25.5]}
24. Nf3 {[%clk 0:01:05.8]} 24... Bc6 {[%clk 0:04:07.3]} 25. d4 {[%clk
0:00:53.3]} 25... a4 {[%clk 0:02:42.9]} 26. Ne5 {[%clk 0:00:48.7]} 26... Bxg2
{[%clk 0:02:41]} 27. Kxg2 {[%clk 0:00:50.6]} 27... Rd5 {[%clk 0:02:33.5]} 28.
Qb4 {[%clk 0:00:45.7]} 28... Ra8 {[%clk 0:02:27.8]} 29. Rc4 {[%clk 0:00:43.4]}
29... Nd7 {[%clk 0:02:18.5]} 30. Nf3 {[%clk 0:00:36.9]} 30... Nb8 {[%clk
0:02:13.5]} 31. Re4 {[%clk 0:00:37.7]} 31... Nc6 {[%clk 0:02:12.6]} 32. Qe1
{[%clk 0:00:34]} 32... a3 {[%clk 0:02:07.1]} 33. b4 {[%clk 0:00:29.6]} 33... b5
{[%clk 0:02:04.1]} 34. cxb6 {[%clk 0:00:20.4]} 34... Qxb6 {[%clk 0:02:04.6]} 35.
Qc3 {[%clk 0:00:21.8]} 35... Ne7 {[%clk 0:01:38.3]} 36. Rc7 {[%clk 0:00:20.4]}
36... Nf5 {[%clk 0:01:33.1]} 37. Re5 {[%clk 0:00:17.9]} 37... Rdd8 {[%clk
0:01:07.9]} 38. Rec5 {[%clk 0:00:11.8]} 38... Nd6 {[%clk 0:00:54.7]} 39. R5c6
{[%clk 0:00:12.2]} 39... Qb5 {[%clk 0:00:50.5]} 40. Ne5 {[%clk 0:00:13.3]} 40...
f6 {[%clk 0:00:28.9]} 41. Ng4 {[%clk 0:00:13.1]} 41... Qd5+ {[%clk 0:00:23.5]}
42. Qf3 {[%clk 0:00:13.6]} 42... Qxf3+ {[%clk 0:00:23.2]} 43. Kxf3 {[%clk
0:00:15.5]} 43... Nb5 {[%clk 0:00:23.4]} 44. Ke3 {[%clk 0:00:14.6]} 44... Nxc7
{[%clk 0:00:22]} 45. Rxc7 {[%clk 0:00:16.5]} 45... Rdc8 {[%clk 0:00:19.3]} 46.
Rxc8+ {[%clk 0:00:16.7]} 46... Rxc8 {[%clk 0:00:21.2]} 47. Kd3 {[%clk
0:00:13.8]} 47... Rc1 {[%clk 0:00:21]} 48. Ne3 {[%clk 0:00:14.9]} 48... Ra1
{[%clk 0:00:21.2]} 49. Nc2 {[%clk 0:00:12.9]} 49... Rxa2 {[%clk 0:00:22]} 50.
Kc3 {[%clk 0:00:13.8]} 50... Kf7 {[%clk 0:00:21]} 51. Kb3 {[%clk 0:00:10.7]}
51... Rb2+ {[%clk 0:00:21.3]} 52. Kc3 {[%clk 0:00:12.2]} 52... Ke7 {[%clk
0:00:18.8]} 53. f4 {[%clk 0:00:11.9]} 53... Kd7 {[%clk 0:00:16.6]} 54. g4 {[%clk
0:00:11.7]} 54... g5 {[%clk 0:00:15.5]} 55. fxg5 {[%clk 0:00:10.5]} 55... hxg5
{[%clk 0:00:17.4]} 56. Nxa3 {[%clk 0:00:11.2]} 56... Rh2 {[%clk 0:00:17.1]} 57.
Nc4 {[%clk 0:00:12.8]} 57... Rxh3+ {[%clk 0:00:17.5]} 58. Kd2 {[%clk 0:00:13.6]}
58... Rg3 {[%clk 0:00:17.5]} 59. Ne3 {[%clk 0:00:14.7]} 59... Kc6 {[%clk
0:00:15.9]} 60. Ke2 {[%clk 0:00:13.3]} 60... Kb5 {[%clk 0:00:14.5]} 61. Kf2
{[%clk 0:00:09.3]} 61... Rh3 {[%clk 0:00:10.8]} 62. d5 {[%clk 0:00:08.4]} 62...
e5 {[%clk 0:00:04.3]} 63. d6 {[%clk 0:00:05.1]} 63... Kxb4 {[%clk 0:00:04.5]}
64. Nd5+ {[%clk 0:00:05.3]} 64... Kc5 {[%clk 0:00:04.9]} 65. d7 {[%clk
0:00:06.7]} 65... Kd6 {[%clk 0:00:06.8]} 66. d8=Q+ {[%clk 0:00:07.5]} 1-0

[Event "GrandPrix_29.05"]
[Site "Chess.com"]
[Date "2020.05.29"]
[Round "3"]
[White "Flawless_Fighter"]
[Black "viktorskliarov"]
[Result "1-0"]
[WhiteElo "2210"]
[BlackElo "2174"]
[TimeControl "600+2"]
[EndTime "10:29:37 PDT"]
[Termination "Flawless_Fighter won by resignation"]

1. e4 {[%clk 0:10:01.9]} 1... c5 {[%clk 0:10:00.2]} 2. Nf3 {[%clk 0:10:02]} 2...
Nc6 {[%clk 0:10:01.1]} 3. Bb5 {[%clk 0:10:01.9]} 3... e6 {[%clk 0:10:02.2]} 4.
Bxc6 {[%clk 0:09:56.9]} 4... bxc6 {[%clk 0:10:04.1]} 5. Qe2 {[%clk 0:09:40.3]}
5... Ne7 {[%clk 0:09:53.2]} 6. h4 {[%clk 0:09:40.3]} 6... h5 {[%clk 0:09:53.7]}
7. b3 {[%clk 0:09:32.5]} 7... Ng6 {[%clk 0:09:15.5]} 8. Bb2 {[%clk 0:09:30.3]}
8... f6 {[%clk 0:09:13]} 9. e5 {[%clk 0:09:14.9]} 9... Be7 {[%clk 0:08:43.7]}
10. Qe4 {[%clk 0:08:39.1]} 10... f5 {[%clk 0:07:42]} 11. Qe2 {[%clk 0:08:02]}
11... a5 {[%clk 0:07:18.6]} 12. a4 {[%clk 0:07:54.6]} 12... Ba6 {[%clk
0:07:17.1]} 13. d3 {[%clk 0:07:54.6]} 13... Nf4 {[%clk 0:06:47.4]} 14. Qf1
{[%clk 0:07:45.4]} 14... Rb8 {[%clk 0:06:29.8]} 15. Nbd2 {[%clk 0:07:28.2]}
15... Kf7 {[%clk 0:04:40.9]} 16. g3 {[%clk 0:07:26.5]} 16... Nd5 {[%clk
0:04:37.9]} 17. Qe2 {[%clk 0:07:27.1]} 17... g6 {[%clk 0:03:53.9]} 18. Nc4
{[%clk 0:07:20.6]} 18... Kg7 {[%clk 0:03:37.9]} 19. Qd2 {[%clk 0:06:45.8]} 19...
Rf8 {[%clk 0:03:28.4]} 20. Qxa5 {[%clk 0:05:55.7]} 20... Qxa5+ {[%clk
0:02:40.3]} 21. Nxa5 {[%clk 0:05:57.6]} 21... f4 {[%clk 0:02:41.9]} 22. Nd2
{[%clk 0:04:53.1]} 22... fxg3 {[%clk 0:02:01]} 23. fxg3 {[%clk 0:04:55]} 23...
Ne3 {[%clk 0:02:02]} 24. Rc1 {[%clk 0:04:51.3]} 24... Bd8 {[%clk 0:01:02.9]} 25.
Nac4 {[%clk 0:04:18.1]} 25... Bxc4 {[%clk 0:00:54.5]} 26. Nxc4 {[%clk
0:03:38.5]} 26... Nf5 {[%clk 0:00:29.2]} 27. Kf2 {[%clk 0:01:24]} 27... g5
{[%clk 0:00:27.3]} 28. Kg2 {[%clk 0:00:11.7]} 28... Kg6 {[%clk 0:00:25.5]} 29.
hxg5 {[%clk 0:00:11.1]} 29... Bxg5 {[%clk 0:00:26.2]} 30. Rce1 {[%clk 0:00:09]}
30... Ne7 {[%clk 0:00:21.9]} 31. Ref1 {[%clk 0:00:07.2]} 31... Rg8 {[%clk
0:00:14.9]} 32. a5 {[%clk 0:00:07.8]} 32... Nd5 {[%clk 0:00:15.8]} 33. Kh3
{[%clk 0:00:06.2]} 33... Nb4 {[%clk 0:00:16]} 34. Rf2 {[%clk 0:00:06.9]} 34...
Ra8 {[%clk 0:00:14.5]} 35. Bc3 {[%clk 0:00:07.6]} 35... Bd8 {[%clk 0:00:15.3]}
36. Bxb4 {[%clk 0:00:08.1]} 36... cxb4 {[%clk 0:00:16.9]} 37. Ra1 {[%clk
0:00:08.7]} 37... Ra6 {[%clk 0:00:14.6]} 38. Ra4 {[%clk 0:00:09]} 38... c5
{[%clk 0:00:15.3]} 39. Rf4 {[%clk 0:00:08.1]} 39... Bc7 {[%clk 0:00:16.4]} 40.
d4 {[%clk 0:00:07]} 40... cxd4 {[%clk 0:00:10.5]} 41. Rxd4 {[%clk 0:00:08.9]}
41... Rg7 {[%clk 0:00:11.7]} 42. Rxb4 {[%clk 0:00:09.7]} 42... Kf5 {[%clk
0:00:08.2]} 43. Rb7 {[%clk 0:00:09.8]} 43... Bxa5 {[%clk 0:00:08.7]} 44. Rbxd7
{[%clk 0:00:08.9]} 44... Rxd7 {[%clk 0:00:09.4]} 45. Rxd7 {[%clk 0:00:10.8]}
45... Be1 {[%clk 0:00:10.4]} 46. Rf7+ {[%clk 0:00:11.6]} 46... Ke4 {[%clk
0:00:11.4]} 47. Rh7 {[%clk 0:00:11.9]} 47... Ra2 {[%clk 0:00:08]} 48. Rxh5
{[%clk 0:00:10.6]} 48... Rxc2 {[%clk 0:00:09.5]} 49. Nd6+ {[%clk 0:00:07.6]}
49... Kd5 {[%clk 0:00:10.3]} 50. Nf7 {[%clk 0:00:05.4]} 50... Rc3 {[%clk
0:00:11.1]} 51. Rg5 {[%clk 0:00:06.3]} 51... Rxb3 {[%clk 0:00:12.2]} 52. Kh4
{[%clk 0:00:05.8]} 52... Bd2 {[%clk 0:00:12.1]} 53. Rg6 {[%clk 0:00:06.5]} 53...
Bc3 {[%clk 0:00:13]} 54. Rg5 {[%clk 0:00:05]} 54... Rb1 {[%clk 0:00:13.6]} 55.
Kh5 {[%clk 0:00:04.8]} 55... Re1 {[%clk 0:00:12.6]} 56. g4 {[%clk 0:00:04.8]}
56... Bd2 {[%clk 0:00:10.7]} 57. Rg8 {[%clk 0:00:05.6]} 57... Rf1 {[%clk
0:00:07.7]} 58. Rd8+ {[%clk 0:00:06.3]} 58... Ke4 {[%clk 0:00:09.1]} 59. Nd6+
{[%clk 0:00:06]} 59... Kf3 {[%clk 0:00:06.3]} 60. g5 {[%clk 0:00:05.5]} 60...
Rh1+ {[%clk 0:00:06.6]} 61. Kg6 {[%clk 0:00:06.6]} 61... Rg1 {[%clk 0:00:08]}
62. Nf7 {[%clk 0:00:07.8]} 62... Bxg5 {[%clk 0:00:07.9]} 63. Nxg5+ {[%clk
0:00:06.7]} 63... Kf4 {[%clk 0:00:07.9]} 64. Kf6 {[%clk 0:00:07.3]} 64... Rxg5
{[%clk 0:00:06.8]} 65. Rd4+ {[%clk 0:00:08.8]} 65... Ke3 {[%clk 0:00:08.2]} 66.
Ra4 {[%clk 0:00:04.5]} 66... Rh5 {[%clk 0:00:05.6]} 67. Kxe6 {[%clk 0:00:05.9]}
67... Rh6+ {[%clk 0:00:07.1]} 68. Kf5 {[%clk 0:00:07.2]} 68... Rh8 {[%clk
0:00:06]} 69. e6 {[%clk 0:00:08]} 69... Rf8+ {[%clk 0:00:07.6]} 70. Kg6 {[%clk
0:00:09]} 1-0

[Event "GrandPrix_29.05"]
[Site "Chess.com"]
[Date "2020.05.29"]
[Round "3"]
[White "Msb2"]
[Black "sergoy"]
[Result "1-0"]
[WhiteElo "2542"]
[BlackElo "2393"]
[TimeControl "600+2"]
[EndTime "10:29:38 PDT"]
[Termination "Msb2 won on time"]

1. d4 {[%clk 0:10:01.9]} 1... Nf6 {[%clk 0:09:55.9]} 2. c4 {[%clk 0:10:02.9]}
2... e6 {[%clk 0:09:56.7]} 3. Nc3 {[%clk 0:10:04.2]} 3... Bb4 {[%clk 0:09:57.5]}
4. e3 {[%clk 0:10:05.8]} 4... O-O {[%clk 0:09:56.1]} 5. Bd2 {[%clk 0:10:06.9]}
5... d5 {[%clk 0:09:56.2]} 6. Nf3 {[%clk 0:10:07]} 6... b6 {[%clk 0:09:57.1]} 7.
cxd5 {[%clk 0:10:08.2]} 7... exd5 {[%clk 0:09:57.9]} 8. Bd3 {[%clk 0:10:09.8]}
8... Bb7 {[%clk 0:09:58.9]} 9. O-O {[%clk 0:10:10]} 9... Nbd7 {[%clk 0:09:58.2]}
10. Rc1 {[%clk 0:10:10.7]} 10... a6 {[%clk 0:09:58.7]} 11. Ne5 {[%clk
0:10:11.4]} 11... Bd6 {[%clk 0:09:00.2]} 12. f4 {[%clk 0:10:11]} 12... c5 {[%clk
0:09:01.1]} 13. Qf3 {[%clk 0:10:11.7]} 13... b5 {[%clk 0:08:26.9]} 14. Qh3
{[%clk 0:09:54]} 14... Nb6 {[%clk 0:07:51]} 15. dxc5 {[%clk 0:08:53.2]} 15...
Bxc5 {[%clk 0:07:49.8]} 16. Nxb5 {[%clk 0:08:17.4]} 16... axb5 {[%clk
0:07:48.7]} 17. Rxc5 {[%clk 0:08:17.1]} 17... Rxa2 {[%clk 0:07:49.3]} 18. Ng4
{[%clk 0:07:03.8]} 18... Nbd7 {[%clk 0:05:18.9]} 19. Bc3 {[%clk 0:06:48.5]}
19... h5 {[%clk 0:05:14]} 20. Nxf6+ {[%clk 0:05:47.8]} 20... Nxf6 {[%clk
0:05:15.9]} 21. Qg3 {[%clk 0:05:42.2]} 21... b4 {[%clk 0:04:14]} 22. Bd4 {[%clk
0:05:35.6]} 22... Ba6 {[%clk 0:04:14.7]} 23. Rc6 {[%clk 0:05:08.2]} 23... h4
{[%clk 0:03:18.6]} 24. Qg5 {[%clk 0:04:51.2]} 24... Bxd3 {[%clk 0:03:18.4]} 25.
Bxf6 {[%clk 0:04:09.9]} 25... Qxf6 {[%clk 0:03:17.3]} 26. Rxf6 {[%clk
0:04:10.2]} 26... Bxf1 {[%clk 0:03:18.1]} 27. Rg6 {[%clk 0:03:18.8]} 27... fxg6
{[%clk 0:02:42.2]} 28. Qxd5+ {[%clk 0:03:18.8]} 28... Kh7 {[%clk 0:02:43.1]} 29.
Qxa2 {[%clk 0:03:20.4]} 29... Bb5 {[%clk 0:02:09.1]} 30. Qd5 {[%clk 0:03:04]}
30... Rf5 {[%clk 0:02:08.8]} 31. Qd6 {[%clk 0:02:44.5]} 31... b3 {[%clk
0:01:54.5]} 32. g4 {[%clk 0:02:30.1]} 32... hxg3 {[%clk 0:01:47.5]} 33. hxg3
{[%clk 0:02:32]} 33... Be2 {[%clk 0:01:48.7]} 34. Kf2 {[%clk 0:02:25.8]} 34...
Bg4 {[%clk 0:01:48.2]} 35. e4 {[%clk 0:02:24.3]} 35... Rh5 {[%clk 0:01:42.4]}
36. Kg2 {[%clk 0:02:18.9]} 36... Ra5 {[%clk 0:01:40.7]} 37. Qd8 {[%clk
0:01:40.5]} 37... Rh5 {[%clk 0:01:32]} 38. Qd3 {[%clk 0:01:27.6]} 38... Bh3+
{[%clk 0:01:23.4]} 39. Kf3 {[%clk 0:01:27.7]} 39... Be6 {[%clk 0:01:24]} 40. Qd6
{[%clk 0:01:26.6]} 40... Bc4 {[%clk 0:01:23.4]} 41. Qc6 {[%clk 0:01:21.3]} 41...
Bd3 {[%clk 0:01:15.3]} 42. e5 {[%clk 0:01:12.3]} 42... Rh2 {[%clk 0:01:04]} 43.
Qc3 {[%clk 0:00:52.6]} 43... Be2+ {[%clk 0:00:55.3]} 44. Ke4 {[%clk 0:00:48.7]}
44... Bd1 {[%clk 0:00:56.3]} 45. e6 {[%clk 0:00:33.2]} 45... Rc2 {[%clk
0:00:56.3]} 46. Qd4 {[%clk 0:00:29.5]} 46... Bg4 {[%clk 0:00:52.4]} 47. Kd5
{[%clk 0:00:14]} 47... Re2 {[%clk 0:00:52.8]} 48. Qb6 {[%clk 0:00:06.9]} 48...
Rxb2 {[%clk 0:00:45.9]} 49. e7 {[%clk 0:00:08.4]} 49... Re2 {[%clk 0:00:45.5]}
50. Kd4 {[%clk 0:00:02.4]} 50... b2 {[%clk 0:00:43.7]} 51. Qxb2 {[%clk
0:00:03.2]} 51... Rxb2 {[%clk 0:00:24.5]} 52. e8=Q {[%clk 0:00:05.1]} 52... Rd2+
{[%clk 0:00:25.8]} 53. Kc3 {[%clk 0:00:05.9]} 53... Rd5 {[%clk 0:00:24.3]} 54.
Qe1 {[%clk 0:00:05.8]} 54... Rh5 {[%clk 0:00:16]} 55. Kc4 {[%clk 0:00:06.9]}
55... Rh2 {[%clk 0:00:16.3]} 56. Kd4 {[%clk 0:00:08.1]} 56... Kh6 {[%clk
0:00:16.3]} 57. Qa1 {[%clk 0:00:08.1]} 57... Rd2+ {[%clk 0:00:17]} 58. Kc5
{[%clk 0:00:08]} 58... Rh2 {[%clk 0:00:13.3]} 59. Kd6 {[%clk 0:00:08.8]} 59...
Kh7 {[%clk 0:00:06.8]} 60. Ke7 {[%clk 0:00:10.2]} 60... Rd2 {[%clk 0:00:03.6]}
61. Qh1+ {[%clk 0:00:10.3]} 61... Kg8 {[%clk 0:00:05]} 62. Qa8+ {[%clk
0:00:10.6]} 62... Kh7 {[%clk 0:00:06.3]} 63. Kf8 {[%clk 0:00:10.1]} 63... Bh5
{[%clk 0:00:04.4]} 64. Qh1 {[%clk 0:00:10.7]} 64... Rd8+ {[%clk 0:00:02.4]} 65.
Ke7 {[%clk 0:00:12]} 65... Rd4 {[%clk 0:00:04]} 66. g4 {[%clk 0:00:12.5]} 66...
Rxf4 {[%clk 0:00:05.3]} 67. gxh5 {[%clk 0:00:14.1]} 67... g5 {[%clk 0:00:07.2]}
68. Qb1+ {[%clk 0:00:14]} 68... Kh8 {[%clk 0:00:04.9]} 69. Qg6 {[%clk
0:00:15.9]} 69... g4 {[%clk 0:00:05.3]} 70. h6 {[%clk 0:00:16.4]} 1-0